Cogmind - Beta 11 X7 @@@ ROGUE MODE // 2021.09.19 @ 18:41:06 Player: Runia Result: Self-destructed Performance ------------- Evolutions (8) 4000 Regions Visited (31) 6200 Robots Destroyed (466) 2330 Value Destroyed (19975) 19975 Prototype IDs (54) 1080 Alien Tech Used (5) 1000 Bonus (8297) 8297 TOTAL SCORE: 42882 Bonus ------- High Alert Combat Kills 2256 Follower Combat Kills 1746 Network Hubs Disabled 400 Met Data Miner 300 Met Warlord at Base 500 MAIN.C Attacked Warlord 500 Warlord Defense Kill 60 A7 Reached Mainframe 300 Met R17 at Cetus 500 Used Core Reset Matrix 3000 Met Warlord at Research 2000 Friendly Fire -3265 Cogmind --------- Core Integrity 29/1450 Matter 294/300 Energy 100/100 System Corruption 3% Temperature Cool (0) Movement Core (50) Location -2/Research Parts ------- > --- POWER (2) -------- (None) > --- PROPULSION (7) --- (None) > --- UTILITY (10) ----- Experimental Signal Interpreter Experimental Target Analyzer > --- WEAPON (4) ------- (None) > --- INVENTORY (5) ---- Light Antimatter Reactor Small Battery (100) Advanced Recalibrator Subatomic Replicator Peak State ------------ > --- POWER ------------ Light Antimatter Reactor Light Particle Reactor > --- PROPULSION ------- Armored Heavy Treads Advanced Heavy Treads Advanced Heavy Treads > --- UTILITY ---------- Advanced Heat Sink Advanced Cooling System High-capacity Storage Unit Advanced Visual Processing Unit Experimental Signal Interpreter Advanced Salvage Targeting Computer Advanced Target Analyzer Advanced Armor Integrity Analyzer Phase Redirector > --- WEAPON ----------- Nova Cannon Nova Cannon Linear Accelerator Linear Accelerator > --- INVENTORY -------- Makeshift Sensor Array Improved Transmission Jammer Phase Armor Antimissile System Field Recycling Unit Minesniffer Drone Bay Transdimensional Reconstructor Transdimensional Reconstructor Transdimensional Reconstructor Transdimensional Reconstructor Subatomic Replicator Vortex Rifle Compact HERF Cannon Micro-nuke Launcher Vortex Catalyst Activator Core Stripper Sigix Corpse [Rating: 173] Favorites ----------- Power Heavy Ion Engine Engine Heavy Ion Engine Power Core Micro Nuclear Core Reactor Quantum Reactor Propulsion Armored Treads Treads Armored Treads Leg Myomer Leg Wheel Compact Wheel Hover Unit Gyrokinetic Inverter Flight Unit Makeshift Flight Unit Utility Advanced Targeting Computer Device Makeshift Sensor Array Storage Huge Storage Unit Processor Advanced Targeting Computer Hackware Improved Hacking Suite Protection Improved Medium Armor Plating Artifact Phase Armor Weapon Heavy Assault Rifle Energy Gun Wave Gun Energy Cannon Nova Cannon Ballistic Gun Heavy Assault Rifle Ballistic Cannon Linear Accelerator Launcher Advanced EMP Blaster Special Weapon Plasma Cutter Impact Weapon Powered Hammer Slashing Weapon Phasing Sabre Piercing Weapon Spear Special Melee Weapon Dirty Datajack Build | -11 -10 -9 -9 -9 -8 -8 -8 -7 -7 -7 -7 -6 -6 -6 -6 -5 -5 -5 -5 -5 -5 -4 -4 -4 -4 -4 -4 -3 -3 -3 -2 ------- Run | Scr Mat Mat Min Exi Min Mat Sto Fac Low Low Zio Pro Fac Low Dat Pro Fac Ext Cet Arc Hub Fac Was Fac Upp Upp War Pro Res Qua Res Slots Evolved 16 | . . 2 . . . 2 . 2 . . . . 2 . . . 2 . . . . 2 . . . . . . 2 . 2 Power 1 | . . . . . . . . . . . . . . . . . . . . . . . . . . . . . 1 . . Propulsion 5 | . . . . . . 1 . . . . . . 1 . . . . . . . . 2 . . . . . . . . 1 Utility 8 | . . 1 . . . 1 . 1 . . . . 1 . . . 2 . . . . . . . . . . . 1 . 1 Weapon 2 | . . 1 . . . . . 1 . . . . . . . . . . . . . . . . . . . . . . . Parts Attached 648 | . 5 22 . 2 1 28 28 34 8 4 19 12 67 3 . 15 15 37 7 6 28 61 6 32 . 3 33 4 56 65 47 Power 34 | . . 1 . . . 1 . 2 1 . 2 1 1 . . . . 3 1 . . 2 . 3 . . 2 . 3 5 6 Engine 12 | . . 1 . . . 1 . 2 1 . 1 1 1 . . . . 2 . . . . . . . . . . . 1 1 Core 3 | . . . . . . . . . . . 1 . . . . . . 1 . . . . . 1 . . . . . . . Reactor 19 | . . . . . . . . . . . . . . . . . . . 1 . . 2 . 2 . . 2 . 3 4 5 Propulsion 99 | . 2 5 . . . 4 2 3 . . 3 1 13 1 . . . 3 1 1 . 6 2 10 . 1 3 1 16 9 12 Treads 47 | . 2 5 . . . 4 2 2 . . 2 1 5 . . . . 3 1 1 . 1 1 1 . . . . 5 3 8 Leg 23 | . . . . . . . . . . . . . 2 . . . . . . . . 3 1 2 . . . . 11 . 4 Wheel 14 | . . . . . . . . 1 . . 1 . 6 1 . . . . . . . 2 . 1 . . . . . 2 . Hover 13 | . . . . . . . . . . . . . . . . . . . . . . . . 5 . . 3 1 . 4 . Flight 2 | . . . . . . . . . . . . . . . . . . . . . . . . 1 . 1 . . . . . Utility 297 | . 3 5 . 1 . 13 7 13 4 1 7 5 24 1 . 9 9 26 3 3 12 35 3 15 . . 13 3 27 36 19 Device 194 | . . 1 . . . 4 2 6 3 1 2 2 18 1 . 6 6 20 2 3 9 28 2 10 . . 10 2 17 29 10 Storage 15 | . 2 1 . . . 1 . . . . 1 . . . . . 1 1 1 . . 1 . . . . . . 2 . 4 Processor 22 | . . 1 . . . 1 . 1 . . 4 . . . . . 1 1 . . . 1 1 1 . . . . 4 4 2 Hackware 6 | . . . . . . . 1 . . . . . 1 . . . . 2 . . 1 . . 1 . . . . . . . Protection 56 | . 1 2 . 1 . 7 4 6 1 . . 3 5 . . 3 1 2 . . 2 5 . 3 . . 3 1 4 . 2 Artifact 4 | . . . . . . . . . . . . . . . . . . . . . . . . . . . . . . 3 1 Weapon 218 | . . 11 . 1 1 10 19 16 3 3 7 5 29 1 . 6 6 5 2 2 16 18 1 4 . 2 15 . 10 15 10 Energy Gun 51 | . . 4 . . . . . . . . . . 1 . . 2 5 2 1 . 8 2 . 1 . 2 11 . 2 5 5 Energy Cannon 17 | . . . . . . . . 1 . . . . 3 . . 1 1 . . . . 2 . . . . . . 2 5 2 Ballistic Gun 80 | . . 6 . . 1 8 10 10 2 2 6 3 8 . . . . 2 1 1 2 9 . 1 . . 2 . 3 . 3 Ballistic Cannon 13 | . . . . . . . 2 . . . . . 5 . . . . 1 . . . . . 2 . . . . . 3 . Launcher 29 | . . 1 . . . 2 3 2 1 . . 2 7 1 . 1 . . . . 2 5 . . . . 1 . . 1 . Special Weapon 2 | . . . . 1 . . . . . . . . . . . 1 . . . . . . . . . . . . . . . Impact Weapon 2 | . . . . . . . . . . 1 1 . . . . . . . . . . . . . . . . . . . . Slashing Weapon 13 | . . . . . . . . . . . . . 5 . . 1 . . . 1 4 . 1 . . . . . . 1 . Piercing Weapon 8 | . . . . . . . 4 3 . . . . . . . . . . . . . . . . . . . . 1 . . Special Melee Weapon 3 | . . . . . . . . . . . . . . . . . . . . . . . . . . . 1 . 2 . . Unidentified Prototypes 41 | . . 3 . 1 . 1 5 1 . . 4 . 2 . . 1 1 . 4 . . 1 . . . . 10 . 2 3 2 Corrupted Parts 3 | . . . . . . . 1 . . . . . . . . . . . . 1 1 . . . . . . . . . . System Corruption 11 | . . . . . . . 5 . . . . . . . . . . . . 5 1 . . . . . . . . . . Parts Lost 145 | . . 3 . . . 3 . 3 2 1 1 1 11 . . 3 . 7 . 1 4 25 . 12 3 . 1 . 23 14 27 Power 17 | . . . . . . . . 1 1 . . . . . . . . 2 . . . 2 . 1 . . . . 4 2 4 Propulsion 36 | . . . . . . . . . . . . 1 4 . . . . 1 . . . 5 . 6 . . 1 . 7 6 5 Utility 37 | . . 1 . . . 2 . 1 . . . . 2 . . 1 . . . . 2 7 . 4 . . . . 5 2 10 Weapon 55 | . . 2 . . . 1 . 1 1 1 1 . 5 . . 2 . 4 . 1 2 11 . 1 3 . . . 7 4 8 Highest Loss Streak 15 | . . 2 . . . 3 . 2 1 1 1 1 8 . . 2 . 2 . 1 1 8 . 3 3 . 1 . 15 4 10 Average Slot Usage (%) 91 | . 98 97 100 100 100 97 96 99 91 91 90 91 91 100 100 98 99 92 87 88 82 81 40 75 90 82 95 96 94 81 59 Engine 4 | . 14 11 11 11 11 9 9 7 6 7 4 2 5 6 6 6 5 3 . . . . . . . . . . . 1 . Reactor 2 | . . . . . . . . . . . . . . . . . . . 4 5 5 4 . 2 5 5 5 5 8 6 4 Treads 14 | . 19 22 22 22 22 26 27 22 7 7 6 7 9 13 13 13 11 15 11 11 11 10 1 3 . . . . 2 4 10 Leg 1 | . 8 . . . . . . . . . . . 2 . . . . . . . . 2 5 4 . . . . 20 . 2 Wheel 2 | . . . . . . . . . 7 7 6 7 10 13 13 13 11 2 . . . 3 5 2 . . . . . 4 . Hover 1 | . . . . . . . . . . . . . . . . . . . . . . . . 6 26 26 29 28 2 6 . Device 9 | . . 4 . . . 8 8 11 11 14 14 12 14 13 13 13 16 17 10 11 9 11 4 10 10 10 10 10 9 12 4 Storage 7 | . 14 12 11 11 11 9 9 7 7 7 6 7 6 6 6 6 5 5 11 11 6 5 . . . . . . 3 3 5 Processor 14 | . . 4 11 11 11 7 9 14 15 15 15 15 13 13 13 13 16 14 17 17 17 15 19 21 21 21 21 21 21 21 16 Protection 5 | . 12 9 11 11 11 8 8 2 2 . . 2 3 6 6 5 5 5 5 5 5 5 . 2 5 5 6 10 4 . 1 Energy Gun 3 | . . 8 11 11 11 2 . . . . . . 1 6 6 9 8 12 5 . 5 8 . . 4 1 10 . 1 1 4 Energy Cannon 1 | . . . . . . . . . . . . . . . . 3 10 3 . . . 1 . . . . . . . 9 2 Ballistic Gun 16 | . 28 24 22 16 21 24 20 27 29 29 28 29 11 6 6 6 2 3 16 17 14 8 . . . . . 10 10 . 4 Slashing Weapon 1 | . . . . . . . . . . . . . 5 8 6 3 . . . 4 1 . 4 5 5 5 5 5 1 . . Naked Turns . | . . . . . . . . . . . . . . . . . . . . . . . . . . . . . . . . Heaviest Build 154 | 11 49 75 60 60 62 110 115 117 114 114 114 113 129 117 117 126 133 136 139 137 154 150 80 49 49 36 50 56 108 136 105 Greatest Support 248 | 20 40 43 40 40 40 63 63 63 28 28 28 28 80 32 32 32 32 130 150 160 160 230 16 80 55 55 71 60 153 200 248 Greatest Overweight (x) 44 | . 1 1 1 1 1 1 1 3 4 4 4 4 5 3 3 3 4 4 . 44 . 8 4 2 . . 1 1 2 7 . Average Overweight (x) 1 | . . 1 1 1 1 . 1 1 3 3 3 3 3 3 3 3 3 . . 22 . . . . . . . . . 1 . Largest Inventory Capacity 25 | 8 20 20 20 20 20 25 25 25 25 25 25 25 25 25 25 25 25 25 25 25 25 25 25 5 5 5 5 5 20 20 5 Average Capacity 21 | 8 15 20 20 20 20 21 25 25 25 25 24 25 25 25 25 25 25 25 25 25 25 25 8 5 5 5 5 5 18 18 5 Most Carried 25 | 6 14 20 20 20 20 22 25 25 24 22 25 25 25 25 25 25 25 25 25 25 25 24 18 5 4 5 5 5 20 20 5 Average Carried 19 | 5 9 18 19 19 20 19 24 24 22 21 22 22 22 25 25 23 24 23 24 24 23 21 6 4 4 4 4 5 16 17 3 Final Capacity 25 | 8 20 20 20 20 20 25 25 25 25 25 25 25 25 25 25 25 25 25 25 25 25 25 5 5 5 5 5 5 20 5 5 Final Carried 25 | 4 14 20 20 20 20 22 25 24 22 22 22 22 25 25 25 25 25 25 25 25 24 15 5 4 4 4 5 5 13 4 4 Class Distribution -------------------- 22% | Gunner 22% | Scavenger-Mutant 17% | Mutant 16% | Scavenger-Gunner 7% | Skirmisher 6% | Scavenger-Skirmisher 3% | Tank Dominant Class ---------------- Mutant | -10/Materials Gunner | -9/Materials Gunner | -9/Mines Gunner | -9/Exiles Gunner | -8/Mines Gunner | -8/Materials Gunner | -8/Storage Skirmisher | -7/Factory Scavenger-Skirmisher | -7/Lower Caves Scavenger-Skirmisher | -7/Lower Caves Scavenger-Skirmisher | -7/Zion Skirmisher | -6/Proximity Caves Mutant | -6/Factory Mutant | -6/Lower Caves Mutant | -6/Data Miner Skirmisher | -5/Proximity Caves Scavenger-Gunner | -5/Factory Scavenger-Gunner | -5/Extension Scavenger-Gunner | -5/Cetus Scavenger-Mutant | -5/Archives Scavenger-Gunner | -5/Hub_04(d) Scavenger-Gunner | -4/Factory Mutant | -4/Waste Mutant | -4/Factory Mutant | -4/Upper Caves Mutant | -4/Upper Caves Commander-Gunner | -4/Warlord Derelict-Mutant | -3/Proximity Caves Scavenger-Mutant | -3/Research Scavenger-Mutant | -3/Quarantine Scavenger-Gunner | -2/Research Resources | -11 -10 -9 -9 -9 -8 -8 -8 -7 -7 -7 -7 -6 -6 -6 -6 -5 -5 -5 -5 -5 -5 -4 -4 -4 -4 -4 -4 -3 -3 -3 -2 ----------- Run | Scr Mat Mat Min Exi Min Mat Sto Fac Low Low Zio Pro Fac Low Dat Pro Fac Ext Cet Arc Hub Fac Was Fac Upp Upp War Pro Res Qua Res Matter Collected 15770 | 200 454 523 20 30 63 1333 1006 1474 177 94 190 366 1553 45 . 168 263 607 408 314 772 1373 6 644 164 17 365 27 1237 769 1108 Remotely 1038 | . . 298 . . . . . . . . . . 716 . . . . . . . . . . 24 . . . . . . . Salvage Created 23469 | . 530 1498 42 230 66 1961 1628 2094 131 143 . 321 2039 45 . 276 363 1060 658 708 1817 3246 . 564 74 . 31 . 1749 1364 831 Parts 1158 | . 38 84 3 21 5 112 78 101 6 12 . 14 87 3 . 10 17 32 32 34 76 155 . 27 . . 6 . 85 73 47 Haulers Intercepted 13 | . . 1 . . . 4 4 2 . . . . 1 . . . . . . . . . . . . . . . 1 . . Recyclers Shooed 29 | . 1 2 1 . . 1 3 2 . . . . 7 . . . 1 1 . . . 6 . 2 . . . . 1 1 . Parts Field Recycled 24 | . . . . . . . . . . . . . . . . . . . . . . . . . . . . . . 24 . Retrieved Matter 181 | . . . . . . . . . . . . . . . . . . . . . . . . . . . . . . 181 . Parts Self-Destructed 119 | . . . . . . . . . 4 14 1 10 . . . 14 . . . . . . . . . . 76 . . . . Prevented 22 | . . . . . . . . . 1 . . 3 . 2 . 5 . . . . . . . . 1 . 10 . . . . Kills | -11 -10 -9 -9 -9 -8 -8 -8 -7 -7 -7 -7 -6 -6 -6 -6 -5 -5 -5 -5 -5 -5 -4 -4 -4 -4 -4 -4 -3 -3 -3 -2 ------- Run | Scr Mat Mat Min Exi Min Mat Sto Fac Low Low Zio Pro Fac Low Dat Pro Fac Ext Cet Arc Hub Fac Was Fac Upp Upp War Pro Res Qua Res Combat Hostiles Destroyed 322 | . 9 28 3 . 4 26 21 25 4 4 . 8 20 1 . 6 9 14 9 4 23 41 . 11 . . 2 . 17 21 12 Melee 7 | . . . . . . . . 1 . . . . 2 . . . . . . . . 1 . 3 . . . . . . . Guns 210 | . 9 22 3 . 4 24 17 17 3 4 . 6 6 . . 4 3 10 9 4 15 22 . 1 . . 2 . 15 . 10 Cannons 45 | . . . . . . . 3 . . . . . 4 . . 2 4 3 . . . 2 . 7 . . . . 2 17 1 AOE 41 | . . 6 . . . 1 1 3 1 . . 2 7 1 . . . . . . 7 9 . . . . . . . 3 . Classes Destroyed 20 | . 5 5 . . . 3 . 2 . . . 1 1 . . . . 1 . . . . . . . . 1 . 1 . . Worker 24 | . . 1 . . . 3 2 6 . . . . . . . . . . . . 4 7 . . . . . . . . 1 Builder 25 | . 1 3 . . . 5 . . . . . . 6 . . . 1 1 . . 1 3 . 2 . . . . 2 . . Tunneler 4 | . . 1 . . . 1 . . . . . . . . . . . . . . . . . 2 . . . . . . . Hauler 13 | . . 1 . . . 4 4 2 . . . . 1 . . . . . . . . . . . . . . . 1 . . Recycler 32 | . 3 4 . . . 3 2 4 . . . . 8 . . . . 1 . . 1 1 . 1 . . . . 3 1 . Mechanic 1 | . . . . . . . . . . . . . 1 . . . . . . . . . . . . . . . . . . Operator 16 | . . . . . . 1 1 1 . . . . . . . . . 2 . 9 1 1 . . . . . . . . . Watcher 21 | . 1 3 . . . 4 2 . . . . . 2 . . . . . . . 3 2 . . . . . . 2 2 . Swarmer 53 | . 5 9 3 . 4 3 . . 3 3 . 3 6 . . 2 4 . . . . 2 . 1 . . . . . . 5 Saboteur 2 | . . . . . . . . . . . . . . . . . . . . . . . . . . . 2 . . . . Grunt 119 | . 4 10 . 2 . 12 15 12 . 1 . 2 4 . . 2 . 8 3 . 15 19 . 1 . . . . . 6 3 Brawler 4 | . . . . . . . . . . . . 1 . . . . . . . . . 1 . 2 . . . . . . . Duelist 9 | . . 1 . . . 1 . 1 . . . 1 . . . . . . . . . 4 . . . . . . . . 1 Protector 2 | . . . . . . . . 1 . . . . . . . . . . . . 1 . . . . . . . . . . Sentry 43 | . . 8 . . . 7 7 5 . . . . . . . 1 1 3 . 4 3 1 . . . . . . 3 . . Specialist 2 | . . . . . . . . . . . . . . . . . . . . . . . . . . . . . 2 . . Hunter 22 | . . . . . . 2 . 2 . . . . 5 1 . . . . 1 . . 6 . 2 . . . . 2 . 1 Programmer 58 | . . . . . . . . 3 1 . . 1 4 . . 1 4 1 . . 4 8 . 5 . . . . 9 15 2 Heavy 6 | . . . . . . 1 1 1 . . . . 1 . . . . . . . . . . . . . . . 2 . . Behemoth 1 | . . . . . . . . . . . . . . . . . . 1 . . . . . . . . . . . . . Cetus Guard 5 | . . . . . . . . . . . . . . . . . . . 5 . . . . . . . . . . . . Packrat 1 | . . . . . . . . . . . . . . . . . . . . . . . . . 1 . . . . . . Thug 1 | . . . . . . . . . . . . . . . . . . 1 . . . . . . . . . . . . . Guerrilla 1 | . . . . . . . . . . . . . . . . . . . 1 . . . . . . . . . . . . Best Kill Streak 11 | . 3 10 3 . 3 4 8 5 3 3 . 3 8 1 . 2 4 3 3 5 11 9 . 3 . . 2 . 4 7 7 Combat Bots Only 8 | . 3 7 3 . 3 3 7 4 3 3 . 3 4 1 . 2 4 2 3 3 8 5 . 3 . . 2 . 3 6 7 Max Kills in Single Turn 4 | . 1 4 2 1 2 3 2 2 1 1 . 1 2 1 . 1 2 1 2 1 4 2 . 1 1 . 1 . 2 2 1 Gunslinging 1 | . . 1 1 . 1 1 1 . . . . . . . . . . . . . . . . . . . . . . . . Exploded 3 | . . 3 . . . 1 1 2 1 . . 1 1 1 . . . . . . 3 1 . . . . . . . 2 . Melee 1 | . . . . . . . . 1 . . . . 1 . . . . . . . . 1 . 1 . . . . . . . Uniques/NPCs Destroyed 2 | . . . . . . . 1 . . . . . . . . . . . 1 . . . . . . . . . . . . 01-MTF (-8/Storage) Revision 17 (-5/Cetus) Combat | -11 -10 -9 -9 -9 -8 -8 -8 -7 -7 -7 -7 -6 -6 -6 -6 -5 -5 -5 -5 -5 -5 -4 -4 -4 -4 -4 -4 -3 -3 -3 -2 -------- Run | Scr Mat Mat Min Exi Min Mat Sto Fac Low Low Zio Pro Fac Low Dat Pro Fac Ext Cet Arc Hub Fac Was Fac Upp Upp War Pro Res Qua Res Damage Taken 38248 | . 337 895 75 . 77 1354 629 1857 221 121 324 331 3228 43 . 406 582 1643 181 245 1763 4973 . 2472 335 61 142 . 4706 4525 6722 Core 5339 | . 77 76 17 . . 253 31 330 31 31 60 61 464 . . 82 33 111 . . 156 618 . 307 49 27 31 . 561 612 1321 Absorbed by Shields 103 | . . . . . . . . . . . . . . . . . . 22 49 . . . . . . . 32 . . . . Reduced by Siege Mode 428 | . . . . . . . . . . . . . . . . . . . . . . . . 190 . . . . . 50 188 Redirected to Core 528 | . . . . . . . . . . . . . . . . . . . . . . . . . . . . . . 228 300 Core Remaining (%) 48 | 100 69 . . . 76 . 48 . . . . 26 . . . 35 . . . . 70 . . . . . . 10 . 5 . Volleys Fired 1144 | . 51 73 5 22 8 105 79 85 9 5 . 17 92 3 . 13 17 58 19 21 59 111 . 41 . . 7 . 80 101 63 Largest 4 | . 2 3 3 1 3 3 3 4 4 4 . 4 4 1 . 3 4 4 4 4 4 4 . 2 . . 3 . 4 3 4 Hottest 348 | . 40 99 99 20 102 107 85 101 101 101 . 96 158 36 . 210 346 309 176 176 230 348 . 126 . . 150 . 231 324 266 Shots Fired 2906 | . 102 215 15 22 22 297 221 270 25 18 . 46 222 3 . 29 48 166 59 76 200 283 . 53 . . 18 . 203 169 124 Gun 2419 | . 102 213 15 . 22 289 208 259 22 18 . 40 158 . . 19 25 142 59 76 190 229 . 1 . . 18 . 190 4 120 Cannon 359 | . . . . . . . 10 . . . . . 42 . . 6 23 24 . . . 27 . 52 . . . . 13 158 4 Launcher 105 | . . 2 . . . 8 3 11 3 . . 6 22 3 . 3 . . . . 10 27 . . . . . . . 7 . Special 23 | . . . . 22 . . . . . . . . . . . 1 . . . . . . . . . . . . . . . Kinetic 2053 | . 102 163 10 . 15 257 218 259 22 18 . 40 181 . . 7 6 37 52 63 117 144 . 52 . . 2 . 162 41 85 Thermal 710 | . . 50 5 22 7 32 . . . . . . 19 . . 18 41 129 7 13 73 112 . 1 . . 15 . 41 117 8 Explosive 15 | . . . . . . . . . . . . 4 4 . . . . . . . . . . . . . . . . 7 . Electromagnetic 126 | . . 2 . . . 8 3 11 3 . . 2 18 3 . 3 1 . . . 10 27 . . . . . . . 4 31 Entropic 1 | . . . . . . . . . . . . . . . . . . . . . . . . . . . 1 . . . . Robot Hit Streak 31 | . 9 17 8 4 5 20 19 27 3 7 . 16 31 2 . 7 6 23 21 15 23 24 . 13 . . 4 . 12 21 13 Robot Miss Streak 5 | . 5 5 3 2 4 4 3 3 2 5 . 1 5 1 . 3 2 5 1 3 4 3 . 5 . . 2 . 3 3 5 Penetration Max 2 | . . . . . . 1 1 1 . . . . 1 . . . . 1 1 . 2 1 . 1 . . . . 1 . 1 Secondary Targets 27 | . . 2 1 . 1 1 5 1 1 2 . 2 1 . . . . . 1 . 4 3 . . . . 1 . 1 . . Max Gunslinging Chain 1 | . . 1 1 . 1 1 1 1 1 1 . 1 1 . . . . . 1 . 1 1 . . . . 1 . 1 . . Shots Hit Robots 2002 | . 60 125 9 16 11 201 150 190 14 10 . 30 160 2 . 21 32 126 45 63 145 181 . 67 1 . 10 . 158 99 76 Core Hits 906 | . 27 68 3 7 4 79 60 65 6 6 . 19 70 1 . 16 16 50 24 26 71 113 . 27 1 . 5 . 63 44 35 Critical Kills 31 | . 1 . . . . 1 1 1 . 1 . . . . . . . 1 5 3 4 5 . . . . . . 4 1 3 Critical Parts Destroyed 54 | . 1 . . . . 3 3 1 . . . . 2 . . . . 2 3 4 11 9 . . . . 1 . 11 . 3 Critical Strikes 133 | . 2 3 1 . . 6 6 2 . 1 . . 6 . . . . 11 8 8 22 19 . 9 . . 3 . 15 4 7 Burn 27 | . . 3 1 . . 2 . . . . . . . . . . . 6 . . 7 5 . . . . 2 . . . 1 Meltdown 1 | . . . . . . . . . . . . . . . . . . . . . . . . . . . . . . 1 . Destroy 87 | . 2 . . . . 4 4 2 . 1 . . 2 . . . . 5 8 8 15 14 . . . . 1 . 15 . 6 Blast 13 | . . . . . . . 2 . . . . . 2 . . . . . . . . . . 6 . . . . . 3 . Sever 5 | . . . . . . . . . . . . . 2 . . . . . . . . . . 3 . . . . . . . Melee Attacks 151 | . . . . . . . 8 2 . . 22 . 19 . . 7 . . . 8 15 . . 33 1 . 5 . 29 2 . Impact 22 | . . . . . . . . . . . 22 . . . . . . . . . . . . . . . . . . . . Slashing 93 | . . . . . . . . . . . . . 19 . . 7 . . . 8 15 . . 33 1 . 4 . 4 2 . Piercing 36 | . . . . . . . 8 2 . . . . . . . . . . . . . . . . . . 1 . 25 . . Sneak Attacks 18 | . . . . . . . . 1 . . . . 2 . . . . . . 7 . . . 5 1 . . . 2 . . Combat Hostiles 3 | . . . . . . . . 1 . . . . . . . . . . . . . . . . . . . . 2 . . Follow-up Attacks 1 | . . . . . . . . . . . . . 1 . . . . . . . . . . . . . . . . . . Damage Inflicted 58047 | . 630 2017 130 216 175 3865 3161 3822 379 172 . 834 4589 63 . 685 1150 3515 1302 2551 5552 8099 . 2890 143 . 234 . 5061 4829 1983 Guns 34873 | . 630 1497 130 . 175 3505 2792 2945 229 172 . 463 1851 . . 308 386 2551 1302 1341 3439 4475 . 23 . . 197 . 4508 . 1954 Cannons 9454 | . . . . . . . 331 . . . . . 1020 . . 57 764 922 . . . 550 . 1311 . . . . 325 4145 29 Explosions 9551 | . . 515 . . . 356 32 782 150 . . 371 1282 63 . 320 . . . . 1994 3003 . . . . . . . 683 . Melee 3703 | . . . . . . . . 78 . . . . 416 . . . . . . 1210 119 . . 1556 143 . 1 . 180 . . Ramming 250 | . . 5 . . . 4 6 17 . . . . 20 . . . . 42 . . . 71 . . . . 36 . 48 1 . Kinetic 30817 | . 630 1200 60 . 140 3156 3123 2945 229 172 . 463 2437 . . 100 73 717 1155 1031 2252 2957 . 1311 . . 65 . 3886 1096 1619 Thermal 15373 | . . 458 70 216 35 452 . . . . . . 689 . . 265 1059 2756 147 310 1974 2646 . 23 . . 132 . 947 3049 145 Explosive 1985 | . . 255 . . . . 32 . . . . 274 469 . . . . . . . . 272 . . . . . . . 683 . Electromagnetic 5919 | . . 99 . . . 253 . 782 150 . . 97 558 63 . 320 18 . . . 1207 2153 . . . . . . . . 219 Impact . | . . . . . . . . . . . . . . . . . . . . . . . . . . . . . . . . Slashing 3579 | . . . . . . . . . . . . . 416 . . . . . . 1210 119 . . 1556 143 . . . 135 . . Piercing 124 | . . . . . . . . 78 . . . . . . . . . . . . . . . . . . 1 . 45 . . Highest Corruption 21 | . 3 . . . . . 8 5 5 2 4 4 1 1 1 1 4 4 . 5 6 5 20 20 12 12 12 . 14 21 3 Average Corruption 3 | . 2 . . . . . 1 2 2 2 3 4 1 1 1 1 3 3 . 3 2 2 12 6 10 12 12 . 8 10 2 Corruption Purged 42 | . . . . . . . . . 5 . . . . . . 1 . 4 . 5 1 5 . 21 . . . . . . . Effects 272 | . 3 . . . . . 19 34 3 6 3 22 6 1 . 1 2 9 . 2 9 2 6 20 6 13 1 . 32 65 7 Message Errors 87 | . 3 . . . . . 6 13 . 2 . 11 5 . . 1 . 5 . . 1 1 1 5 . 4 . . 8 20 1 Matter Fused 46 | . . . . . . . 1 5 . . 2 3 . . . . 1 3 . 1 3 . 1 3 1 1 . . 6 12 3 Heat Flow Errors 22 | . . . . . . . . 5 1 1 . 2 . . . . 1 . . . . 1 . 2 1 2 . . 2 4 . Energy Discharges 41 | . . . . . . . 6 3 1 1 . . 1 1 . . . 1 . . 3 . 1 5 . 2 1 . 7 7 1 Parts Rejected 3 | . . . . . . . . . . . . . . . . . . . . . . . 1 . . . . . . 2 . Data Loss (minor) 42 | . . . . . . . 6 5 1 2 1 5 . . . . . . . . 2 . 1 3 1 3 . . 3 8 1 Data Loss (major) 9 | . . . . . . . . 1 . . . . . . . . . . . 1 . . . 1 1 . . . . 5 . Misfires 6 | . . . . . . . . 1 . . . . . . . . . . . . . . . . . . . . 3 2 . Alerts 3 | . . . . . . . . . . . . . . . . . . . . . . . . 1 1 . . . . 1 . Misdirections 3 | . . . . . . . . . . . . . . . . . . . . . . . 1 . 1 1 . . . . . Weapon Failures 10 | . . . . . . . . 1 . . . 1 . . . . . . . . . . . . . . . . 3 4 1 Overload Shots . | . . . . . . . . . . . . . . . . . . . . . . . . . . . . . . . . Overflow Damage 1245 | . . 41 . . . . 35 . . . . 30 89 . . . 10 11 . 207 124 214 . 253 . . . . 4 227 . Projectiles 294 | . . . . . . . 35 . . . . . 35 . . . 10 . . . . 22 . 4 . . . . 4 184 . Explosions 434 | . . 41 . . . . . . . . . 30 15 . . . . . . . 113 192 . . . . . . . 43 . Melee 517 | . . . . . . . . . . . . . 39 . . . . 11 . 207 11 . . 249 . . . . . . . Knockbacks 30 | . . . . . . . 1 1 . . . . 5 . . . . . . . . 1 . 10 . . 1 . . 11 . Impact 3 | . . . . . . . . 1 . . . . . . . . . . . . . 1 . . . . 1 . . . . Kinetic 27 | . . . . . . . 1 . . . . . 5 . . . . . . . . . . 10 . . . . . 11 . Secondary . | . . . . . . . . . . . . . . . . . . . . . . . . . . . . . . . . Self-Inflicted Damage 799 | . . 112 . . . 24 . 9 . . . . 126 . . . . . . . 218 226 . . . . 18 . . 66 . Shots 19 | . . 1 . . . 1 . 1 . . . . 4 . . . . . . . 7 4 . . . . . . . 1 . Rammed 31 | . . 2 . . . 1 1 1 . . . . 3 . . . . 2 . . . 7 . . . . 1 . 11 2 . Targets Rammed 32 | . . 2 . . . 1 1 1 . . . . 4 . . . . 2 . . . 7 . . . . 1 . 11 2 . Kicked . | . . . . . . . . . . . . . . . . . . . . . . . . . . . . . . . . Crushed 1 | . . . . . . . . . . . . . 1 . . . . . . . . . . . . . . . . . . Highest Temperature 448 | . 21 240 96 . 204 249 184 287 93 142 . 239 271 . . 286 365 248 9 18 384 342 . 223 198 267 197 . 448 264 93 Average Temperature 76 | . 6 50 47 . 94 55 37 67 44 47 . 84 73 . . 103 102 54 6 9 119 89 . 72 136 125 70 . 116 62 30 Received Heat Transfer 4828 | . 96 348 . . 12 351 261 510 . . . 108 468 . . 186 27 331 18 27 510 806 . 55 30 21 44 . 108 187 324 Effects 11 | . . . . . . 1 . 1 . . . . . . . . . . . . 5 1 . . . . . . 3 . . Energy Bleed 4 | . . . . . . 1 . 1 . . . . . . . . . . . . 1 . . . . . . . 1 . . Interference 5 | . . . . . . . . . . . . . . . . . . . . . 3 1 . . . . . . 1 . . Short Circuit 1 | . . . . . . . . . . . . . . . . . . . . . . . . . . . . . 1 . . Damage (minor) 1 | . . . . . . . . . . . . . . . . . . . . . 1 . . . . . . . . . . Siege Activations 5 | . . . . . . . . . . . . . . . . . . . . . . . . 2 . . . . . 1 2 Total Turns 195 | . . . . . . . . . . . . . . . . . . . . . . . . 52 . . . . . 85 58 Longest Duration 85 | . . . . . . . . . . . . . . . . . . . . . . . . 33 . . . . . 85 43 Robots Corrupted 14 | . . . . . . 1 . 4 . . . . 1 . . . . . . . 1 6 . . . . . . . . 1 Combat Hostiles 14 | . . . . . . 1 . 4 . . . . 1 . . . . . . . 1 6 . . . . . . . . 1 Parts Fried 30 | . . . . . . 1 . 6 . . . . 3 2 . . . . 1 . 1 15 . . . . . . . . 1 Impact Corruptions 1 | . . . . . . . . . . . . . . . . . . 1 . . . . . . . . . . . . . Robots Melted 5 | . . . . . . . . . . . . . . . . . 2 1 . . . 1 . . . . . . . 1 . Combat Hostiles 5 | . . . . . . . . . . . . . . . . . 2 1 . . . 1 . . . . . . . 1 . Parts Melted 44 | . . 2 . . . 4 . . . . . . 2 . . 2 3 10 . 1 7 3 . . . . . . . 10 . Heat Transferred 22150 | . . 1236 222 666 74 1038 . . . . . . 800 . . 550 1221 4565 222 407 2821 3634 . 50 . . 387 . 1214 2887 156 Parts Sabotaged 4 | . . . . . . . . . . . . . . . . . . . . . . 4 . . . . . . . . . Parts Stolen . | . . . . . . . . . . . . . . . . . . . . . . . . . . . . . . . . Parts Stripped . | . . . . . . . . . . . . . . . . . . . . . . . . . . . . . . . . Power Chain Reactions 21 | . . 3 . . . 2 . 1 . . . . 3 1 . . . . . . 6 5 . . . . . . . . . Missiles Intercepted . | . . . . . . . . . . . . . . . . . . . . . . . . . . . . . . . . Alert | -11 -10 -9 -9 -9 -8 -8 -8 -7 -7 -7 -7 -6 -6 -6 -6 -5 -5 -5 -5 -5 -5 -4 -4 -4 -4 -4 -4 -3 -3 -3 -2 ------- Run | Scr Mat Mat Min Exi Min Mat Sto Fac Low Low Zio Pro Fac Low Dat Pro Fac Ext Cet Arc Hub Fac Was Fac Upp Upp War Pro Res Qua Res Peak Influence 1383 | . 148 380 124 . 100 525 525 757 . . . . 563 . . . 171 300 577 412 1258 1383 476 427 . . . . 257 438 221 Initial 616 | . . 3 54 . . . 178 217 . . . . 6 . . . . 83 . 193 . 616 476 322 . . . . . 94 198 Average 203 | . 50 185 30 . 27 196 284 258 . . . . 284 . . . 82 99 355 45 480 921 453 331 . . . . 95 131 111 Maximum Alert Level 4 | . . 1 . . . 2 2 3 . . . . 2 . . . . 1 2 2 4 4 2 2 . . . . 1 2 1 Low Security (%) 61 | 100 100 64 100 . 100 53 32 45 . . . . 24 . . . 100 87 32 86 14 . . . . . . . 87 78 87 Level 1 22 | . . 35 . . . 33 38 23 . . . . 59 . . . . 12 9 10 23 . . 82 . . . . 12 19 12 Level 2 11 | . . . . . . 13 28 23 . . . . 16 . . . . . 58 3 58 18 100 17 . . . . . 1 . Level 3 3 | . . . . . . . . 7 . . . . . . . . . . . . 3 63 . . . . . . . . . Level 4 . | . . . . . . . . . . . . . . . . . . . . . . 17 . . . . . . . . . Level 5 . | . . . . . . . . . . . . . . . . . . . . . . . . . . . . . . . . High Security . | . . . . . . . . . . . . . . . . . . . . . . . . . . . . . . . . Max Security . | . . . . . . . . . . . . . . . . . . . . . . . . . . . . . . . . Squads Dispatched 73 | . 2 2 . . . 2 4 6 . . . . 6 . . . 3 3 . . 9 17 . 4 . . . . 7 8 . Investigation 7 | . . 1 . . . 1 . 1 . . . . . . . . 1 . . . 1 1 . . . . . . 1 . . Extermination 28 | . . . . . . . . 3 . . . . 4 . . . 2 . . . 2 5 . 2 . . . . 3 7 . Reinforcement 26 | . 2 1 . . . 1 4 1 . . . . 2 . . . . 3 . . 2 4 . 2 . . . . 3 1 . Assault 9 | . . . . . . . . 1 . . . . . . . . . . . . 3 5 . . . . . . . . . Garrison 3 | . . . . . . . . . . . . . . . . . . . . . 1 2 . . . . . . . . . Intercept . | . . . . . . . . . . . . . . . . . . . . . . . . . . . . . . . . Construction Impeded 4 | . . . . . . . . . . . . . . . . . . . . . 1 2 . 1 . . . . . . . Haulers Reinforced 2 | . . . . . . . . . . . . . 1 . . . . . . . . 1 . . . . . . . . . Active Scanning Responses . | . . . . . . . . . . . . . . . . . . . . . . . . . . . . . . . . Cargo Convoy Interrupts 1 | . . . . . . . . . . . . . 1 . . . . . . . . . . . . . . . . . . Stealth | -11 -10 -9 -9 -9 -8 -8 -8 -7 -7 -7 -7 -6 -6 -6 -6 -5 -5 -5 -5 -5 -5 -4 -4 -4 -4 -4 -4 -3 -3 -3 -2 --------- Run | Scr Mat Mat Min Exi Min Mat Sto Fac Low Low Zio Pro Fac Low Dat Pro Fac Ext Cet Arc Hub Fac Was Fac Upp Upp War Pro Res Qua Res Distress Signals 23 | . 1 2 . . . 2 . 2 . . . . 1 . . . . . 2 . . 4 . . . . 1 . 1 2 5 Communications Jammed 183 | . . . . . . 39 16 48 . . . . 8 . . . . . . . 2 48 . . . . . . 9 13 . Distress Signals 157 | . . . . . . 32 14 41 . . . . . . . . . . . . 2 48 . . . . . . 7 13 . Times Spotted 656 | . 22 41 6 . 7 48 38 37 4 4 . 8 38 1 . 9 11 34 20 10 50 81 6 20 6 4 48 . 36 40 27 Peak Tracking Total 13 | . 4 6 3 . 4 4 5 6 3 3 . 3 6 1 . 4 5 3 5 1 8 13 6 5 4 4 13 . 5 7 9 Tactical Retreats 33 | . 3 1 . . . 3 . 3 . . . 1 . . . 1 1 1 . . 2 3 . 3 2 3 1 . . . 5 Traps | -11 -10 -9 -9 -9 -8 -8 -8 -7 -7 -7 -7 -6 -6 -6 -6 -5 -5 -5 -5 -5 -5 -4 -4 -4 -4 -4 -4 -3 -3 -3 -2 ------- Run | Scr Mat Mat Min Exi Min Mat Sto Fac Low Low Zio Pro Fac Low Dat Pro Fac Ext Cet Arc Hub Fac Was Fac Upp Upp War Pro Res Qua Res Traps Triggered 21 | . 3 1 . . . 2 4 4 . . . . . . . . . 1 . . 3 1 . 1 . . . . 1 . . Indirectly 5 | . . 1 . . . . 2 . . . . . . . . . . . . . 2 . . . . . . . . . . Trap Hack Attempts . | . . . . . . . . . . . . . . . . . . . . . . . . . . . . . . . . Triggered . | . . . . . . . . . . . . . . . . . . . . . . . . . . . . . . . . Disarmed . | . . . . . . . . . . . . . . . . . . . . . . . . . . . . . . . . Reprogrammed . | . . . . . . . . . . . . . . . . . . . . . . . . . . . . . . . . Reused . | . . . . . . . . . . . . . . . . . . . . . . . . . . . . . . . . Traps Extracted . | . . . . . . . . . . . . . . . . . . . . . . . . . . . . . . . . Installed . | . . . . . . . . . . . . . . . . . . . . . . . . . . . . . . . . Triggered 9 | . . . . . . . . . . . . . 1 . . 1 . . . . . . . . 1 . 6 . . . . Machines | -11 -10 -9 -9 -9 -8 -8 -8 -7 -7 -7 -7 -6 -6 -6 -6 -5 -5 -5 -5 -5 -5 -4 -4 -4 -4 -4 -4 -3 -3 -3 -2 ---------- Run | Scr Mat Mat Min Exi Min Mat Sto Fac Low Low Zio Pro Fac Low Dat Pro Fac Ext Cet Arc Hub Fac Was Fac Upp Upp War Pro Res Qua Res Machines Disabled 100 | . . 4 1 . 1 11 11 7 . . . . 4 . . . . 1 2 4 23 11 . 2 . . . . . 18 . Max in Single Turn 7 | . . 2 1 . 1 2 1 1 . . . . 3 . . . . . . 1 7 3 . 1 . . . . . 2 . Garrison Access 7 | . . . . . . 1 1 2 . . . . 1 . . . . . . . 1 . . . . . . . 1 . . Network Hub 2 | . . . . . . . . . . . . . . . . . . . . . 2 . . . . . . . . . . Machines Sabotaged . | . . . . . . . . . . . . . . . . . . . . . . . . . . . . . . . . Garrisons Compromised 1 | . . . . . . . . . . . . . 1 . . . . . . . . . . . . . . . . . . Overloaded Fab Kills . | . . . . . . . . . . . . . . . . . . . . . . . . . . . . . . . . Fab Network Shutdowns . | . . . . . . . . . . . . . . . . . . . . . . . . . . . . . . . . Hacking | -11 -10 -9 -9 -9 -8 -8 -8 -7 -7 -7 -7 -6 -6 -6 -6 -5 -5 -5 -5 -5 -5 -4 -4 -4 -4 -4 -4 -3 -3 -3 -2 --------- Run | Scr Mat Mat Min Exi Min Mat Sto Fac Low Low Zio Pro Fac Low Dat Pro Fac Ext Cet Arc Hub Fac Was Fac Upp Upp War Pro Res Qua Res Machines Accessed 112 | . 6 7 1 1 . 10 10 14 . 1 1 . 9 . 4 . 5 9 1 . 6 3 . 4 . 1 1 . 9 9 . Terminals 69 | . 6 7 . . . 7 7 7 . . . . 2 . . . 2 8 1 . 5 1 . 1 . . . . 6 9 . Fabricators 8 | . . . . . . . . 1 . . . . 3 . . . 2 . . . . 1 . . . . . . 1 . . Repair Stations 9 | . . . . . . 2 1 2 . . . . 2 . . . . . . . . 1 . 1 . . . . . . . Recycling Units 7 | . . . . . . . 1 1 . . . . 1 . . . 1 1 . . . . . 1 . . . . 1 . . Scanalyzers 1 | . . . . . . . . 1 . . . . . . . . . . . . . . . . . . . . . . . Garrison Access 8 | . . . . . . 1 1 2 . . . . 1 . . . . . . . 1 . . 1 . . . . 1 . . Total Hacks 306 | . 18 23 1 1 . 30 24 40 . 1 5 . 20 . 22 . 14 26 1 . 13 8 . 14 . 1 1 . 12 31 . Successful 161 | . 11 12 1 1 . 18 13 20 . 1 5 . 7 . 22 . 6 10 1 . 3 1 . 9 . 1 1 . 5 13 . Failed 145 | . 7 11 . . . 12 11 20 . . . . 13 . . . 8 16 . . 10 7 . 5 . . . . 7 18 . Catastrophic 34 | . . . . . . 4 2 2 . . . . 2 . . . 2 4 . . 3 3 . 2 . . . . 6 4 . Database Lockouts . | . . . . . . . . . . . . . . . . . . . . . . . . . . . . . . . . Manual 120 | . 12 19 . 2 . 9 12 13 . . 1 . 8 . . . 2 4 1 . 1 6 . 5 . . 1 . 6 18 . Terminals 197 | . 18 23 . . . 20 16 27 . . . . 7 . . . 3 24 1 . 12 3 . 4 . . . . 8 31 . Fabricators 22 | . . . . . . . . 1 . . . . 7 . . . 10 . . . . 3 . . . . . . 1 . . Repair Stations 25 | . . . . . . 8 2 5 . . . . 4 . . . . . . . . 2 . 4 . . . . . . . Recycling Units 17 | . . . . . . . 4 2 . . . . 1 . . . 1 2 . . . . . 5 . . . . 2 . . Scanalyzers 2 | . . . . . . . . 2 . . . . . . . . . . . . . . . . . . . . . . . Garrison Access 11 | . . . . . . 2 2 3 . . . . 1 . . . . . . . 1 . . 1 . . . . 1 . . Terminal Hacks 94 | . 8 6 1 1 . 7 8 6 . 1 5 . 2 . 22 . 1 9 1 . 3 . . 1 . 1 1 . 1 9 . Record 14 | . . . . 1 . . . . . . . . . . 11 . . . . . . . . . . . . . . 2 . Part Schematic 13 | . 2 1 . . . . . . . . 5 . . . 3 . . 1 . . . . . . . . . . . 1 . Robot Schematic 5 | . . . . . . . . . . . . . . . 5 . . . . . . . . . . . . . . . . Robot Analysis 7 | . 3 1 . . . 1 . . . . . . . . . . . 2 . . . . . . . . . . . . . Prototype ID Bank 6 | . . . . . . . . . . . . . . . 3 . . 1 . . . . . . . . . . . 2 . Open Door 9 | . . . 1 . . . 3 . . 1 . . . . . . . 1 1 . . . . . . 1 1 . . . . Level Access Points 3 | . . . . . . . . 1 . . . . . . . . . . . . 1 . . . . . . . 1 . . Branch Access Points 4 | . . 1 . . . . . 1 . . . . 1 . . . . . . . . . . . . . . . . 1 . Terminal Index 3 | . 1 1 . . . . . 1 . . . . . . . . . . . . . . . . . . . . . . . Scanalyzer Index 1 | . . . . . . 1 . . . . . . . . . . . . . . . . . . . . . . . . . Alert Level 5 | . 1 . . . . 1 1 . . . . . . . . . . 1 . . 1 . . . . . . . . . . Unreport Threat 10 | . . 2 . . . 2 2 1 . . . . 1 . . . . 1 . . . . . . . . . . . 1 . Locate Traps 4 | . . . . . . . . 1 . . . . . . . . . 1 . . . . . 1 . . . . . 1 . Recall Reinforcements 2 | . . . . . . . . . . . . . . . . . . 1 . . 1 . . . . . . . . . . Hauler Manifests 4 | . 1 . . . . . 2 1 . . . . . . . . . . . . . . . . . . . . . . . Zone Layout 4 | . . . . . . 2 . . . . . . . . . . 1 . . . . . . . . . . . . 1 . Fabricator Hacks 6 | . . . . . . . . 1 . . . . 2 . . . 3 . . . . . . . . . . . . . . Load Schematic 4 | . . . . . . . . . . . . . 2 . . . 2 . . . . . . . . . . . . . . Build 2 | . . . . . . . . 1 . . . . . . . . 1 . . . . . . . . . . . . . . Repair Station Hacks 19 | . . . . . . 8 2 4 . . . . 2 . . . . . . . . . . 3 . . . . . . . Scan Component 10 | . . . . . . 4 1 2 . . . . 1 . . . . . . . . . . 2 . . . . . . . Repair 9 | . . . . . . 4 1 2 . . . . 1 . . . . . . . . . . 1 . . . . . . . Recycling Unit Hacks 5 | . . . . . . . . 1 . . . . . . . . . 1 . . . . . 1 . . . . 2 . . Report Inventory 3 | . . . . . . . . . . . . . . . . . . 1 . . . . . 1 . . . . 1 . . Retrieve Matter 1 | . . . . . . . . 1 . . . . . . . . . . . . . . . . . . . . . . . Retrieve Components 1 | . . . . . . . . . . . . . . . . . . . . . . . . . . . . . 1 . . Scanalyzer 2 | . . . . . . . . 2 . . . . . . . . . . . . . . . . . . . . . . . Insert Component 1 | . . . . . . . . 1 . . . . . . . . . . . . . . . . . . . . . . . Analyze 1 | . . . . . . . . 1 . . . . . . . . . . . . . . . . . . . . . . . Garrison Access Hacks 5 | . . . . . . 1 1 1 . . . . 1 . . . . . . . . . . . . . . . 1 . . Seal Access 5 | . . . . . . 1 1 1 . . . . 1 . . . . . . . . . . . . . . . 1 . . Unauthorized Hacks 30 | . 3 6 . . . 2 2 5 . . . . . . . . 2 . . . . 1 . 4 . . . . 1 4 . Terminals 22 | . 3 6 . . . 2 1 4 . . . . . . . . 1 . . . . . . 1 . . . . . 4 . Track 2 | . . 1 . . . . 1 . . . . . . . . . . . . . . . . . . . . . . . . Assimilate 2 | . . . . . . . . 2 . . . . . . . . . . . . . . . . . . . . . . . Botnet 17 | . 3 5 . . . 2 . 2 . . . . . . . . 1 . . . . . . 1 . . . . . 3 . Disrupt 1 | . . . . . . . . . . . . . . . . . . . . . . . . . . . . . . 1 . Fabricators 2 | . . . . . . . . . . . . . . . . . . . . . . 1 . . . . . . 1 . . Haulers 2 | . . . . . . . . . . . . . . . . . . . . . . 1 . . . . . . 1 . . Repair Stations . | . . . . . . . . . . . . . . . . . . . . . . . . . . . . . . . . Recycling Units 5 | . . . . . . . 1 . . . . . . . . . 1 . . . . . . 3 . . . . . . . Reject 1 | . . . . . . . . . . . . . . . . . . . . . . . . 1 . . . . . . . Recyclers 1 | . . . . . . . . . . . . . . . . . . . . . . . . 1 . . . . . . . Mask 2 | . . . . . . . 1 . . . . . . . . . . . . . . . . 1 . . . . . . . Tunnel 1 | . . . . . . . . . . . . . . . . . 1 . . . . . . . . . . . . . . Scanalyzers . | . . . . . . . . . . . . . . . . . . . . . . . . . . . . . . . . Garrison Access 1 | . . . . . . . . 1 . . . . . . . . . . . . . . . . . . . . . . . Jam 1 | . . . . . . . . 1 . . . . . . . . . . . . . . . . . . . . . . . Data Cores Recovered 2 | . . . . . . . 1 1 . . . . . . . . . . . . . . . . . . . . . . . Used 1 | . . . . . . . . 1 . . . . . . . . . . . . . . . . . . . . . . . Hacking Detections 84 | . 6 7 . . . 8 8 13 . . . . 7 . . . 4 8 . . 6 2 . 2 . . . . 6 7 . Full Trace Events 1 | . . . . . . 1 . . . . . . . . . . . . . . . . . . . . . . . . . Feedback Events . | . . . . . . . . . . . . . . . . . . . . . . . . . . . . . . . . Feedback Blocked . | . . . . . . . . . . . . . . . . . . . . . . . . . . . . . . . . Robot Schematics Acquired 5 | . . . . . . . . . . . . . . . 5 . . . . . . . . . . . . . . . . Robots Built . | . . . . . . . . . . . . . . . . . . . . . . . . . . . . . . . . Matter . | . . . . . . . . . . . . . . . . . . . . . . . . . . . . . . . . Time . | . . . . . . . . . . . . . . . . . . . . . . . . . . . . . . . . Total Robot Build Rating . | . . . . . . . . . . . . . . . . . . . . . . . . . . . . . . . . Part Schematics Acquired 14 | . 2 1 . . . . . 1 . . 5 . . . 3 . . 1 . . . . . . . . . . . 1 . Parts Built 3 | . . . . . . . . 2 . . . . . . . . 1 . . . . . . . . . . . . . . Matter 530 | . . . . . . . . 212 . . . . . . . . 318 . . . . . . . . . . . . . . Time 190 | . . . . . . . . 106 . . . . . . . . 84 . . . . . . . . . . . . . . Total Part Build Rating 18 | . . . . . . . . 12 . . . . . . . . 6 . . . . . . . . . . . . . . Parts Repaired 9 | . . . . . . 4 1 2 . . . . 1 . . . . . . . . . . 1 . . . . . . . Time 415 | . . . . . . 164 32 98 . . . . 70 . . . . . . . . . . 51 . . . . . . . Parts Recycled . | . . . . . . . . . . . . . . . . . . . . . . . . . . . . . . . . Recycled Matter . | . . . . . . . . . . . . . . . . . . . . . . . . . . . . . . . . Retrieved Matter . | . . . . . . . . . . . . . . . . . . . . . . . . . . . . . . . . Retrieved Components 8 | . . . . . . . . . . . . . . . . . . . . . . . . . . . . . 8 . . Parts Scanalyzed 1 | . . . . . . . . 1 . . . . . . . . . . . . . . . . . . . . . . . Part Schematics Acquired 1 | . . . . . . . . 1 . . . . . . . . . . . . . . . . . . . . . . . Parts Damaged . | . . . . . . . . . . . . . . . . . . . . . . . . . . . . . . . . Bothacking | -11 -10 -9 -9 -9 -8 -8 -8 -7 -7 -7 -7 -6 -6 -6 -6 -5 -5 -5 -5 -5 -5 -4 -4 -4 -4 -4 -4 -3 -3 -3 -2 ------------ Run | Scr Mat Mat Min Exi Min Mat Sto Fac Low Low Zio Pro Fac Low Dat Pro Fac Ext Cet Arc Hub Fac Was Fac Upp Upp War Pro Res Qua Res Used RIF Installer . | . . . . . . . . . . . . . . . . . . . . . . . . . . . . . . . . Robots Hacked 1 | . . . . . . . . . . . . . . . . 1 . . . . . . . . . . . . . . . Non-combat . | . . . . . . . . . . . . . . . . . . . . . . . . . . . . . . . . Combat . | . . . . . . . . . . . . . . . . . . . . . . . . . . . . . . . . Robot Hacks Applied . | . . . . . . . . . . . . . . . . . . . . . . . . . . . . . . . . Manual 1 | . . . . . . . . . . . . . . . . 1 . . . . . . . . . . . . . . . Relay Couplers Released 5 | . . . . . . . . 2 . . . . . . . . . . . . 3 . . . . . . . . . . Machine Destruction 5 | . . . . . . . . 2 . . . . . . . . . . . . 3 . . . . . . . . . . Robots Rewired 26 | . . . . 6 . . . 2 . . . . . . . . . 13 . . . . . . . . 5 . . . . Allies Hacked 1 | . . . . . . . . . . . . . . . . . . 1 . . . . . . . . . . . . . Hacks Repelled . | . . . . . . . . . . . . . . . . . . . . . . . . . . . . . . . . Allies | -11 -10 -9 -9 -9 -8 -8 -8 -7 -7 -7 -7 -6 -6 -6 -6 -5 -5 -5 -5 -5 -5 -4 -4 -4 -4 -4 -4 -3 -3 -3 -2 -------- Run | Scr Mat Mat Min Exi Min Mat Sto Fac Low Low Zio Pro Fac Low Dat Pro Fac Ext Cet Arc Hub Fac Was Fac Upp Upp War Pro Res Qua Res Total Allies 63 | . . . 1 6 . . 12 3 . . . . . . . 2 . 18 2 . . . . . . . 5 . 1 7 6 Largest Group 10 | . . . 1 5 4 2 10 3 . . . . . . . 1 . 8 8 1 . . . . . . 5 . 1 7 4 Highest-Rated Group 453 | . . . 31 66 58 42 173 47 . . . . . . . 95 . 379 453 140 . . . . . . 303 . 123 102 54 Highest-Rated Ally 156 | . . . 31 31 21 21 100 21 . . . . . . . 95 . 156 156 140 . . . . . . 68 . 123 15 15 Total Orders 31 | . . . . 3 . . . . . . . . 3 . . . . . . . . 11 . . . . 10 4 . . . STAY 6 | . . . . 1 . . . . . . . . . . . . . . . . . . . . . . 5 . . . . FOLLOW 7 | . . . . 2 . . . . . . . . . . . . . . . . . . . . . . 5 . . . . EXPLORE 11 | . . . . . . . . . . . . . 1 . . . . . . . . 9 . . . . . 1 . . . RETURN 7 | . . . . . . . . . . . . . 2 . . . . . . . . 2 . . . . . 3 . . . Ally Attacks 371 | . . . 6 . 15 2 63 6 . . . . 11 . . 23 . 102 85 . . . . . . . 16 . . 33 9 Total Damage 7974 | . . . 63 . 228 51 1156 48 . . . . . . . 698 . 1762 2485 . . . . . . . 887 . . 433 163 Kills 57 | . . . 3 . 4 1 11 . . . . . . . . 6 . 10 16 . . . . . . . 3 . . 3 . Allies Corrupted 1 | . . . . . . . . . . . . . . . . . . . . . . . . . . . . . . 1 . Allies Melted 1 | . . . . . . . 1 . . . . . . . . . . . . . . . . . . . . . . . . Intel | -11 -10 -9 -9 -9 -8 -8 -8 -7 -7 -7 -7 -6 -6 -6 -6 -5 -5 -5 -5 -5 -5 -4 -4 -4 -4 -4 -4 -3 -3 -3 -2 ------- Run | Scr Mat Mat Min Exi Min Mat Sto Fac Low Low Zio Pro Fac Low Dat Pro Fac Ext Cet Arc Hub Fac Was Fac Upp Upp War Pro Res Qua Res Robot Analysis Total 7 | . 3 1 . . . 1 . . . . . . . . . . . 2 . . . . . . . . . . . . . Derelict Logs Recovered 11 | . . . 2 . . . . . . 1 . 2 . 3 . 1 . . . . . . . . 1 1 . . . . . Drone Launches 42 | . . . . . . . . . . . . . 16 . . . . 7 . . . 11 5 . . . . 3 . . . Drone Recoveries 16 | . . . . . . . . . . . . . 5 . . . . . . . . 7 2 . . . . 2 . . . Exploration | -11 -10 -9 -9 -9 -8 -8 -8 -7 -7 -7 -7 -6 -6 -6 -6 -5 -5 -5 -5 -5 -5 -4 -4 -4 -4 -4 -4 -3 -3 -3 -2 ------------- Run | Scr Mat Mat Min Exi Min Mat Sto Fac Low Low Zio Pro Fac Low Dat Pro Fac Ext Cet Arc Hub Fac Was Fac Upp Upp War Pro Res Qua Res Turns Passed 47044 | 246 1241 2409 1126 1349 1712 3589 2325 3302 652 553 2255 1129 2904 507 131 1131 723 2074 560 5625 1221 1809 152 1137 142 262 930 249 1891 2347 1361 Spaces Moved 20565 | 101 599 800 408 444 625 1149 714 1093 364 335 1416 544 1410 323 91 687 381 877 274 439 580 696 134 650 256 413 1033 383 1234 1265 847 Core 650 | . . . . . . . . . . . 27 . . . . . . . . 227 . . . . . . . . . 214 182 Treads 9280 | . 433 800 408 444 625 1149 714 1087 . . . . 107 . . . . 757 274 212 580 656 . 159 . . . . 27 315 533 Legs 1322 | 101 166 . . . . . . . . . . . . . . . . . . . . . . 4 . . . . 919 . 132 Wheels 6788 | . . . . . . . . 6 364 335 1389 544 1303 323 91 687 381 120 . . . 40 134 335 . . . . . 736 . Hover 2525 | . . . . . . . . . . . . . . . . . . . . . . . . 152 256 413 1033 383 288 . . Flight . | . . . . . . . . . . . . . . . . . . . . . . . . . . . . . . . . Fastest Speed 41 | 120 120 260 270 270 270 166 266 145 145 145 50 145 116 145 145 145 145 160 160 160 160 129 90 52 52 52 43 44 41 50 50 Average Speed 190 | 120 178 262 270 270 270 263 266 265 153 158 151 145 161 145 145 145 158 168 160 1240 160 164 97 115 52 52 53 57 102 135 126 Slowest Speed 2250 | 120 260 270 270 270 270 266 266 266 160 160 160 160 670 145 145 145 160 260 160 2250 160 260 170 160 52 52 93 93 280 260 170 Overloaded Moves . | . . . . . . . . . . . . . . . . . . . . . . . . . . . . . . . . Propulsion Burnouts . | . . . . . . . . . . . . . . . . . . . . . . . . . . . . . . . . Robots Hopped 2 | . . . . . . . . . . . . . . . . . . . . . . . . . . . . . . 2 . Cave-ins Triggered 1 | . . . . . . . . . . . 1 . . . . . . . . . . . . . . . . . . . . Teleports 3 | . . . . . . . . . . . . . . . . . . . . . . . . . . . . . . 2 1 Time Travels 1 | . . . . 1 . . . . . . . . . . . . . . . . . . . . . . . . . . . Exploration Rate (%) 61 | 8 91 83 91 89 97 93 92 37 60 57 83 69 21 49 71 65 9 88 71 92 53 29 85 9 55 62 90 54 23 65 23 Regions Visited 31 Branch Regions 20 Pre-discovered Areas 8 | . . . . 1 . . . . . 1 1 . . . 1 1 1 . . . . . . . 1 1 . . . . . Known Exits Taken 23 | . . 1 . . 1 . . 1 1 1 1 1 1 1 1 1 1 1 1 1 1 . . 1 1 1 1 1 1 1 . Unknown Exits Taken 6 | 1 1 . 1 1 . 1 1 . . . . . . . . . . . . . . . . . . . . . . . . Scrap Searched 11 | . . . . . 1 . . . 2 1 . 1 . . . 1 . . . . . . . . 1 2 . 2 . . . Spaces Dug 221 | . . . . . . . 1 1 . . 2 . 11 . . 7 . . . . 173 7 . . . . . . 7 11 1 Terrain Destroyed 857 | . . 30 . . . 15 22 2 . 2 2 20 66 . . 8 2 1 1 13 383 107 . 17 . . . . 71 91 4 Melee 32 | . . . . . . . 1 1 . . 2 . 8 . . 7 . . . . 6 . . . . . . . 7 . . Projectile 222 | . . . . . . 3 4 . . 2 . . 5 . . 1 2 1 1 12 22 44 . 17 . . . . 64 40 4 AOE 600 | . . 30 . . . 11 17 . . . . 20 53 . . . . . . . 355 63 . . . . . . . 51 . Terrain Rammed . | . . . . . . . . . . . . . . . . . . . . . . . . . . . . . . . . Walls Destroyed . | . . . . . . . . . . . . . . . . . . . . . . . . . . . . . . . . Machines Disabled . | . . . . . . . . . . . . . . . . . . . . . . . . . . . . . . . . Actions | -11 -10 -9 -9 -9 -8 -8 -8 -7 -7 -7 -7 -6 -6 -6 -6 -5 -5 -5 -5 -5 -5 -4 -4 -4 -4 -4 -4 -3 -3 -3 -2 --------- Run | Scr Mat Mat Min Exi Min Mat Sto Fac Low Low Zio Pro Fac Low Dat Pro Fac Ext Cet Arc Hub Fac Was Fac Upp Upp War Pro Res Qua Res Total 26131 | 226 681 964 424 553 636 1493 965 1352 442 346 1499 859 1858 358 90 778 450 1346 355 554 722 1148 156 927 262 459 1394 408 1681 1724 1021 Wait 2698 | 124 11 28 9 12 . 173 112 97 61 2 . 283 205 28 . 51 24 152 37 75 30 248 8 153 6 40 232 21 213 234 29 Move 20532 | 100 598 799 407 443 624 1148 713 1092 363 334 1415 543 1409 322 90 686 380 876 273 438 579 696 133 649 255 412 1033 382 1233 1260 847 Hop 2 | . . . . . . . . . . . . . . . . . . . . . . . . . . . . . . 2 . Pick Up 296 | . 12 20 1 5 1 16 8 11 1 1 25 1 34 1 . 5 6 23 7 4 6 20 2 13 . 3 9 . 30 20 11 Fast Attach 180 | . 2 2 . 1 1 9 6 2 . . 12 . 5 . . . 1 2 4 . . 5 5 14 . 1 22 1 19 27 39 Attach 180 | . 2 6 . . . 7 4 7 3 1 4 4 29 . . 3 2 14 1 2 5 23 1 14 . 2 4 . 22 11 9 Detach 29 | . . . . . . 2 1 . . . . 3 7 . . . . 1 . . 1 . 3 1 . . 3 . 5 2 . Swap 293 | . 1 14 . 1 . 12 18 25 5 3 3 8 33 3 . 12 12 21 2 4 23 33 . 4 . . 7 3 15 30 1 Drop 296 | 2 4 20 2 6 2 20 15 9 . . 18 . 22 1 . 1 8 23 12 2 4 5 4 5 . 1 30 1 24 33 22 Fire 1144 | . 51 73 5 22 8 105 79 85 9 5 . 17 92 3 . 13 17 58 19 21 59 111 . 41 . . 7 . 80 101 63 Melee 150 | . . . . . . . 8 2 . . 22 . 18 . . 7 . . . 8 15 . . 33 1 . 5 . 29 2 . Ram 7 | . . . . . . . . . . . . . . . . . . . . . . 5 . . . . . . . 2 . Kick . | . . . . . . . . . . . . . . . . . . . . . . . . . . . . . . . . Crush 24 | . . 2 . . . 1 1 1 . . . . 4 . . . . 2 . . . 2 . . . . . . 11 . . Escape Stasis 4 | . . . . . . . . 4 . . . . . . . . . . . . . . . . . . . . . . . Rewire 296 | . . . . 63 . . . 17 . . . . . . . . . 174 . . . . . . . . 42 . . . . Trap . | . . . . . . . . . . . . . . . . . . . . . . . . . . . . . . . . Miscellaneous . | . . . . . . . . . . . . . . . . . . . . . . . . . . . . . . . . Route ------- -11/Scrapyard -10/Materials (discovered 5 exits: *Mat x3 / [*Min x2]) -9/Materials (discovered 3 exits: *Mat / *Min x2) -9/Mines (discovered 3 exits: *Mat x2 / *Exi) -9/Exiles -8/Mines (discovered 2 exits: *Mat x2) -8/Materials (discovered 4 exits: *Fac x3 / *Sto) -8/Storage -7/Factory (discovered 6 exits: *Fac x4 / *Low x2) -7/Lower Caves -7/Lower Caves -7/Zion -6/Proximity Caves -6/Factory (discovered 2 exits: *Low x2) -6/Lower Caves (discovered 2 exits: Low / *Dat) -6/Data Miner -5/Proximity Caves -5/Factory -5/Extension (discovered 3 exits: *Fac x2 / *Cet) -5/Cetus (discovered 2 exits: *Fac / *Arc) -5/Archives (discovered 3 exits: *Fac / *Hub x2) -5/Hub_04(d) (discovered 4 exits: *Fac x4) -4/Factory -4/Waste -4/Factory -4/Upper Caves -4/Upper Caves -4/Warlord -3/Proximity Caves -3/Research (discovered 5 exits: Res x3 / *Arm / *Qua) -3/Quarantine -2/Research History --------- Turn | Location | Event 1 | -11/Scrapyard | Discovered new exit (range 2) 247 | -11/Scrapyard | Entered Materials 311 | -10/Materials | Build established: Mutant 557 | -10/Materials | Discovered new exit (range 9) 628 | -10/Materials | Discovered new exit (range 5) 883 | -10/Materials | Discovered new exit (range 9) 1040 | -10/Materials | Discovered new exit (range 16) 1196 | -10/Materials | Discovered new exit (range 9) 1488 | -10/Materials | Entered another Materials area 1488 | -9/Materials | Evolved 2 slots: Utility x1, Weapon x1 1796 | -9/Materials | Build established: Tank 1945 | -9/Materials | Identified exit to Mines 2078 | -9/Materials | Discovered new exit (range 10) 2298 | -9/Materials | Build established: Gunner 2676 | -9/Materials | Build established: Tank 2874 | -9/Materials | Destroyed 7 combat bots 3318 | -9/Materials | Build established: Gunner 3897 | -9/Materials | Entered Mines 3928 | -9/Mines | Met a Derelict bent on vengeance 3970 | -9/Mines | Discovered new exit (range 15) 4146 | -9/Mines | Identified exit to Materials 4157 | -9/Mines | Learned Materials stockpile data 4275 | -9/Mines | Found the Drone Emporium 4288 | -9/Mines | Found Prototype Device 4385 | -9/Mines | Escorted by a lone wolf Derelict 5005 | -9/Mines | Deemed a non-threat by the Exiles lab entrance 5008 | -9/Mines | Discovered new exit (range 5) 5023 | -9/Mines | Entered Exiles 5023 | -9/Exiles | Found Exiles lab destroyed 5023 | -9/Exiles | Accompanied by 1 ally 5777 | -9/Exiles | Learned location of Zion (-7) 6047 | -9/Exiles | Opened EX-Vault 6061 | -9/Exiles | Found Prototype Device 6061 | -9/Exiles | Identified Chronowheel 6061 | -9/Exiles | Activated Chronowheel 6061 | -9/Exiles | Spacetime reconverged on an earlier point 6219 | -9/Exiles | Build established: Mutant 6338 | -9/Exiles | Discovered new exit (range 10) 6372 | -9/Exiles | Entered Mines 6372 | -8/Mines | Accompanied by 4 allies 6588 | -8/Mines | Build established: Commander-Mutant 6911 | -8/Mines | Build established: Gunner 6936 | -8/Mines | Discovered exit to Materials (range 4) 7347 | -8/Mines | Discovered exit to Materials (range 9) 8084 | -8/Mines | Entered Materials 8084 | -8/Materials | Accompanied by 2 allies 8084 | -8/Materials | Evolved 2 slots: Propulsion x1, Utility x1 8299 | -8/Materials | Lost 3 parts (2u1w) 8626 | -8/Materials | Build established: Tank 8791 | -8/Materials | Identified Bomb Drone Bay 9045 | -8/Materials | Discovered new exit (range 5) 9242 | -8/Materials | Build established: Scavenger-Gunner 9280 | -8/Materials | Repaired Arm. Treads 9325 | -8/Materials | Repaired Hrd. Heavy Armor Plating 9909 | -8/Materials | Discovered new exit (range 15) 10498 | -8/Materials | Build established: Gunner 10996 | -8/Materials | Discovered new exit (range 13) 11328 | -8/Materials | Repaired Arm. Treads 11374 | -8/Materials | Repaired Gauss Rifle 11575 | -8/Materials | Discovered new exit (range 16) 11673 | -8/Materials | Entered Storage 11995 | -8/Storage | Found Corrupted Prototype Launcher 12190 | -8/Storage | Assisted by bots powering up and referring to "LRC-V3" 13003 | -8/Storage | Discovered new exit (range 7) 13067 | -8/Storage | Met 01-MTF 13212 | -8/Storage | Core integrity fell below 50% 13239 | -8/Storage | Destroyed 7 combat bots 13358 | -8/Storage | Repaired Med. Armor Plating 13954 | -8/Storage | Identified Gui. Missile Launcher 13975 | -8/Storage | Destroyed 01-MTF 13998 | -8/Storage | Entered Factory 13998 | -7/Factory | Evolved 2 slots: Utility x1, Weapon x1 14287 | -7/Factory | Build established: Skirmisher 14382 | -7/Factory | Discovered new exit (range 13) 14467 | -7/Factory | Discovered new exit (range 6) 14481 | -7/Factory | Identified exit to Factory 15781 | -7/Factory | Build established: Gunner 16210 | -7/Factory | Identified exit to Lower Caves 16400 | -7/Factory | Build established: Skirmisher 17138 | -7/Factory | Build established: Gunner 17198 | -7/Factory | Repaired Arm. Treads 17198 | -7/Factory | First assault squad dispatched 17209 | -7/Factory | Repaired Enh. Autogun 17213 | -7/Factory | Fabricated Neutron Cannon (x2) 17300 | -7/Factory | Entered Lower Caves 17307 | -7/Lower Caves | Core integrity fell below 50% 17605 | -7/Lower Caves | Build established: Scavenger-Skirmisher 17919 | -7/Lower Caves | Discovered new exit (range 13) 17949 | -7/Lower Caves | Identified exit to Lower Caves 17952 | -7/Lower Caves | Entered another Lower Caves area 18004 | -7/Lower Caves | Build established: Scavenger-Gunner 18163 | -7/Lower Caves | Learned location of Extension (-5) 18314 | -7/Lower Caves | Build established: Scavenger-Skirmisher 18393 | -7/Lower Caves | Discovered new exit (range 9) 18408 | -7/Lower Caves | Identified exit to Zion 18505 | -7/Lower Caves | Entered Zion 18666 | -7/Zion | System corruption cleaned by Quarantine Array 18711 | -7/Zion | Discovered new exit (range 16) 18892 | -7/Zion | Received a hallucinogenic algorithm 19247 | -7/Zion | Given the Hacking Drone Bay 19873 | -7/Zion | Found Prototype Processor 19873 | -7/Zion | Identified Exp. Armor Integrity Analyzer 19875 | -7/Zion | Found Prototype Processor 19875 | -7/Zion | Identified Exp. Terrain Scan Processor 19877 | -7/Zion | Found Prototype Processor 19877 | -7/Zion | Identified Exp. Core Analyzer 19880 | -7/Zion | Found Prototype Processor 19880 | -7/Zion | Identified Exp. Signal Interpreter 20270 | -7/Zion | Build established: Skirmisher 20509 | -7/Zion | Crushed by falling debris 20563 | -7/Zion | Found Prototype Device 20638 | -7/Zion | Build established: Mutant 20758 | -7/Zion | Identified exit to Proximity Caves 20760 | -7/Zion | Entered Proximity Caves 20771 | -6/Proximity Caves | Learned Factory trap positions 20795 | -6/Proximity Caves | Learned Factory terminal intel 21013 | -6/Proximity Caves | Spotted B-75 Beast 21299 | -6/Proximity Caves | Build established: Skirmisher 21600 | -6/Proximity Caves | Discovered exit to Factory (range 3) 21748 | -6/Proximity Caves | Received a Behemoth hack from an annoying Tinkerer 21781 | -6/Proximity Caves | Build established: Gunner 21889 | -6/Proximity Caves | Entered Factory 21889 | -6/Factory | Evolved 2 slots: Propulsion x1, Utility x1 21890 | -6/Factory | Loaded intel: 121 trap records 21891 | -6/Factory | Loaded intel: 20 terminal locations 22489 | -6/Factory | Identified exit to Lower Caves 22638 | -6/Factory | Cargo convoy interrupted 22732 | -6/Factory | Spotted B-75 Beast 22912 | -6/Factory | Lost 8 parts (3n2u3w) 22968 | -6/Factory | Found Launcher Loader 23171 | -6/Factory | Build established: Mutant 23630 | -6/Factory | Build established: Scavenger-Mutant 23780 | -6/Factory | Repaired Hvy. Deuterium Engine 24534 | -6/Factory | Core integrity fell below 50% 24793 | -6/Factory | Entered Lower Caves 25026 | -6/Lower Caves | Build established: Mutant 25067 | -6/Lower Caves | Learned Factory stockpile data 25155 | -6/Lower Caves | Identified exit to Lower Caves 25158 | -6/Lower Caves | Learned Factory interactive machine intel 25283 | -6/Lower Caves | A Derelict revealed a hidden shortcut to meet someone special 25299 | -6/Lower Caves | Identified exit to Data Miner 25300 | -6/Lower Caves | Entered Data Miner 25300 | -6/Data Miner | Discovered new exit (range 6) 25328 | -6/Data Miner | Met Data Miner 25360 | -6/Data Miner | Learned location of Section 7 (-3) 25360 | -6/Data Miner | Acquired the access code to Warlord's prototype stash 25386 | -6/Data Miner | Received God Mode back door access code from Data Miner 25424 | -6/Data Miner | Identified exit to Proximity Caves 25431 | -6/Data Miner | Entered Proximity Caves 25445 | -5/Proximity Caves | Attracted the attention of an 0b10 checkpoint 25772 | -5/Proximity Caves | Build established: Skirmisher 25800 | -5/Proximity Caves | Escorted by Enhanced Grunt 25952 | -5/Proximity Caves | Spotted B-75 Beast 26108 | -5/Proximity Caves | Befriended a Behemoth using the annoying Tinkerer's hack 26112 | -5/Proximity Caves | Found Prototype Device 26113 | -5/Proximity Caves | Identified Exp. Thermal Shield 26393 | -5/Proximity Caves | Build established: Mutant 26503 | -5/Proximity Caves | Discovered new exit (range 11) 26517 | -5/Proximity Caves | Identified exit to Factory 26562 | -5/Proximity Caves | Entered Factory 26562 | -5/Factory | Evolved 2 slots: Utility x2 26564 | -5/Factory | Loaded intel: 48 interactive machine locations 26762 | -5/Factory | Incoming investigation squad redirected 26925 | -5/Factory | Build established: Scavenger-Gunner 26973 | -5/Factory | Discovered new exit (range 6) 27124 | -5/Factory | Fabricated Combat Drone Bay (x1) 27283 | -5/Factory | Identified exit to Extension 27285 | -5/Factory | Entered Extension 27493 | -5/Extension | Build established: Gunner 28210 | -5/Extension | Disrupted transfer network 28267 | -5/Extension | Build established: Scavenger-Gunner 28580 | -5/Extension | Spotted B-75 Beast 28602 | -5/Extension | Allies destroyed B-75 Beast 28633 | -5/Extension | Spotted B-75 Beast 28649 | -5/Extension | Destroyed B-75 Beast 28827 | -5/Extension | Discovered new exit (range 3) 29042 | -5/Extension | Rescued a captive Derelict 29042 | -5/Extension | Rescued a captive Derelict 29225 | -5/Extension | Rescued A7 29252 | -5/Extension | Rescued a captive Derelict 29253 | -5/Extension | Rescued a captive Derelict 29312 | -5/Extension | Discovered new exit (range 10) 29313 | -5/Extension | Discovered new exit (range 6) 29326 | -5/Extension | Identified exit to Factory 29342 | -5/Extension | Identified exit to Cetus 29359 | -5/Extension | Entered Cetus 29359 | -5/Cetus | Accompanied by 8 allies (A7) 29364 | -5/Cetus | Acquired a Cetus Manufacturing Module code from A7 29382 | -5/Cetus | Spotted Cetus Guard 29382 | -5/Cetus | Spotted Cetus Guard 29386 | -5/Cetus | Spotted Cetus Guard 29388 | -5/Cetus | Spotted Cetus Guard 29391 | -5/Cetus | Allies destroyed Cetus Guard 29395 | -5/Cetus | Allies destroyed Cetus Guard 29400 | -5/Cetus | Destroyed Cetus Guard 29403 | -5/Cetus | Destroyed Cetus Guard 29488 | -5/Cetus | Started Cetus Manufacturing Module 29501 | -5/Cetus | Escorted A7 to Cetus Mainframe 29513 | -5/Cetus | Manufactured an Enhanced Grunt 29538 | -5/Cetus | Manufactured an Enhanced Grunt 29544 | -5/Cetus | Cetus Manufacturing Module disabled 29631 | -5/Cetus | Discovered new exit (range 16) 29660 | -5/Cetus | Spotted Cetus Guard 29660 | -5/Cetus | Spotted Cetus Guard 29664 | -5/Cetus | Spotted Cetus Guard 29664 | -5/Cetus | Spotted Cetus Guard 29673 | -5/Cetus | Destroyed Cetus Guard 29676 | -5/Cetus | Destroyed Cetus Guard 29678 | -5/Cetus | Allies destroyed Cetus Guard 29680 | -5/Cetus | Destroyed Cetus Guard 29691 | -5/Cetus | Discovered exit to Factory (range 15) 29701 | -5/Cetus | Met Revision 17 29786 | -5/Cetus | Destroyed Revision 17 29868 | -5/Cetus | Found Exp. Thermal Shield 29913 | -5/Cetus | Identified exit to Archives 29919 | -5/Cetus | Entered Archives 29919 | -5/Archives | Accompanied by 1 ally (A7) 29924 | -5/Archives | Received a hacking code to weaken MAIN.C 30064 | -5/Archives | Discovered new exit (range 16) 30201 | -5/Archives | Discovered exit to Factory (range 15) 30222 | -5/Archives | Discovered new exit (range 15) 30321 | -5/Archives | Build established: Scavenger-Mutant 35541 | -5/Archives | Identified exit to Hub_04(d) 35544 | -5/Archives | Entered Hub_04(d) 36144 | -5/Hub_04(d) | First assault squad dispatched 36191 | -5/Hub_04(d) | Incoming assault squad redirected 36207 | -5/Hub_04(d) | Destroyed 8 combat bots 36696 | -5/Hub_04(d) | Garrison activated, responded to threat 36754 | -5/Hub_04(d) | Network Hub disabled 36760 | -5/Hub_04(d) | Spotted Lightning 36760 | -5/Hub_04(d) | Spotted Lightning 36762 | -5/Hub_04(d) | Network Hub disabled 36762 | -5/Hub_04(d) | Spotted Lightning 36765 | -5/Hub_04(d) | Entered Factory 36765 | -4/Factory | Evolved 2 slots: Propulsion x2 37015 | -4/Factory | First assault squad dispatched 37018 | -4/Factory | Build established: Scavenger-Gunner 37031 | -4/Factory | Incoming assault squad redirected 37241 | -4/Factory | Lost 3 parts (1n1u1w) 37563 | -4/Factory | Incoming assault squad redirected 37567 | -4/Factory | Incoming assault squad redirected 38045 | -4/Factory | Incoming investigation squad redirected 38330 | -4/Factory | Discovered new exit (range 39) 38402 | -4/Factory | Garrison activated, responded to threat 38458 | -4/Factory | Incoming assault squad redirected 38496 | -4/Factory | Lost 3 parts (1u2w) 38563 | -4/Factory | Core integrity fell below 50% 38574 | -4/Factory | Sucked down chute 38574 | -4/Factory | Entered Waste 38587 | -4/Waste | Spotted C-40 Crusher 38589 | -4/Waste | EMP discharged 38589 | -4/Waste | System corruption reached 10% 38590 | -4/Waste | Spotted C-40 Crusher 38602 | -4/Waste | Lost 8 parts (1p2n1u4w) 38665 | -4/Waste | Spotted C-40 Crusher 38687 | -4/Waste | Spotted C-40 Crusher 38689 | -4/Waste | EMP discharged 38691 | -4/Waste | Spotted C-40 Crusher 38712 | -4/Waste | Spotted C-40 Crusher 38716 | -4/Waste | Discovered new exit (range 10) 38725 | -4/Waste | Identified exit to Factory 38726 | -4/Waste | Entered Factory 38844 | -4/Factory | Build established: Mutant 38986 | -4/Factory | Discovered new exit (range 8) 38995 | -4/Factory | Identified exit to Upper Caves 39021 | -4/Factory | Repaired Broken Adv. Heavy Siege Treads 39145 | -4/Factory | Lost 3 parts (1n2u) 39710 | -4/Factory | Core integrity fell below 20% 39752 | -4/Factory | Lost 3 parts (2n1u) 39863 | -4/Factory | Entered Upper Caves 39880 | -4/Upper Caves | Learned location of Armory (-3) 39991 | -4/Upper Caves | Attracted the attention of an 0b10 checkpoint 39998 | -4/Upper Caves | Discovered new exit (range 14) 40004 | -4/Upper Caves | Identified exit to Upper Caves 40005 | -4/Upper Caves | Entered another Upper Caves area 40021 | -4/Upper Caves | Lost 3 parts (3w) 40189 | -4/Upper Caves | Discovered new exit (range 8) 40192 | -4/Upper Caves | Identified exit to Warlord 40267 | -4/Upper Caves | Entered Warlord 40288 | -4/Warlord | System corruption cleaned by Quarantine Array 40436 | -4/Warlord | Found Prototype Device 40437 | -4/Warlord | Identified Minesniffer Drone Bay 40442 | -4/Warlord | Found Minesniffer Drone Bay 40444 | -4/Warlord | Found Minesniffer Drone Bay 40681 | -4/Warlord | Met Warlord 40686 | -4/Warlord | Opened Warlord's prototype stash 40695 | -4/Warlord | Warlord's base attacked by MAIN.C 40700 | -4/Warlord | Found Prototype Device 40700 | -4/Warlord | Identified Exp. Focal Shield 40706 | -4/Warlord | Found Prototype Device 40706 | -4/Warlord | Identified Exp. Phase Shifter 40756 | -4/Warlord | Found Prototype Launcher 40763 | -4/Warlord | Found Prototype Energy Gun 40764 | -4/Warlord | Identified Vortex Rifle 40768 | -4/Warlord | Found Prototype Energy Gun 40768 | -4/Warlord | Identified Vortex Shotgun 41010 | -4/Warlord | Identified Vortex Catalyst Activator 41045 | -4/Warlord | Warlord forces counterattacked 41072 | -4/Warlord | Spotted B-90 Cyclops 41095 | -4/Warlord | Spotted Striker 41154 | -4/Warlord | Found Prototype Device 41154 | -4/Warlord | Identified Adv. Kinecellerator 41193 | -4/Warlord | Discovered new exit (range 8) 41195 | -4/Warlord | Spotted Executioner 41195 | -4/Warlord | Spotted Striker 41196 | -4/Warlord | Identified exit to Proximity Caves 41197 | -4/Warlord | Entered Proximity Caves 41417 | -3/Proximity Caves | Discovered new exit (range 9) 41422 | -3/Proximity Caves | Identified exit to Research 41446 | -3/Proximity Caves | Entered Research 41446 | -3/Research | Evolved 2 slots: Power x1, Utility x1 41797 | -3/Research | Identified exit to Research 41901 | -3/Research | Build established: Scavenger-Mutant 42081 | -3/Research | Found Enh. Force Lance 42454 | -3/Research | Discovered new exit (range 3) 42466 | -3/Research | Identified exit to Armory 43118 | -3/Research | System corruption reached 10% 43198 | -3/Research | Discovered new exit (range 8) 43299 | -3/Research | Lost 15 parts (3p6n3u3w) 43324 | -3/Research | Identified exit to Quarantine 43337 | -3/Research | Entered Quarantine 43515 | -3/Quarantine | Cryocooling Duct disabled 43530 | -3/Quarantine | Ambient heat levels rising (+20) 43530 | -3/Quarantine | Non-combat units ordered to evacuate 43708 | -3/Quarantine | Found Antimissile System 43817 | -3/Quarantine | Found Alien Artifact 43856 | -3/Quarantine | Found Alien Artifact 43944 | -3/Quarantine | Found Sigix Corpse 43991 | -3/Quarantine | Found Alien Artifact 43991 | -3/Quarantine | Identified Core Reset Matrix 43991 | -3/Quarantine | Identified Subatomic Replicator 43991 | -3/Quarantine | Identified Matter Drive 43991 | -3/Quarantine | Used Core Reset Matrix 43995 | -3/Quarantine | Detected hypermatrix surge 43995 | -3/Quarantine | Sensed 14 artifacts in vicinity 44022 | -3/Quarantine | Found Transdimensional Reconstructor 44035 | -3/Quarantine | Found Transdimensional Reconstructor 44037 | -3/Quarantine | Found Transdimensional Reconstructor 44040 | -3/Quarantine | Found Transdimensional Reconstructor 44320 | -3/Quarantine | Build established: Scavenger-Skirmisher 44412 | -3/Quarantine | Found Phase Redirector 44521 | -3/Quarantine | Core integrity fell below 50% 44934 | -3/Quarantine | Emitted hypermatrix ping 44939 | -3/Quarantine | Assembled emerged from beneath the floor 45153 | -3/Quarantine | Found Core Stripper 45196 | -3/Quarantine | Found Phase Armor 45381 | -3/Quarantine | Spotted Alpha 7 45444 | -3/Quarantine | Warped through subspace 45476 | -3/Quarantine | Warped through subspace 45491 | -3/Quarantine | Incoming assault squad redirected 45506 | -3/Quarantine | Lost 4 parts (2p2u) 45550 | -3/Quarantine | Discovered exit to Research (range 8) 45644 | -3/Quarantine | Core integrity fell below 20% 45664 | -3/Quarantine | Found Sigix Broadsword 45684 | -3/Quarantine | Entered Research 45684 | -2/Research | Warlord forces began assault on 0b10 45684 | -2/Research | Evolved 2 slots: Propulsion x1, Utility x1 45756 | -2/Research | Met up with Warlord 45765 | -2/Research | Build established: Mutant 45794 | -2/Research | Research machine network offline 46011 | -2/Research | Borebot progress halted 46042 | -2/Research | Spotted MD-6GY(L) 46121 | -2/Research | Lost 7 parts (2p2n1u2w) 46152 | -2/Research | Borebot progress halted 46395 | -2/Research | Warped through subspace 46479 | -2/Research | Borebot progress halted 46498 | -2/Research | Found Prototype Device 46498 | -2/Research | Identified Beam Splitter 46538 | -2/Research | Build established: Scavenger-Gunner 46620 | -2/Research | Destroyed 7 combat bots 46620 | -2/Research | Lost 4 parts (1p2u1w) 46826 | -2/Research | Found Prototype Processor 46826 | -2/Research | Identified Exp. Target Analyzer 46878 | -2/Research | Core integrity fell below 50% 46921 | -2/Research | Lost 3 parts (1u2w) 46938 | -2/Research | Spotted Executioner 46944 | -2/Research | Spotted Striker 46967 | -2/Research | Spotted Striker 46985 | -2/Research | Spotted B-90 Cyclops 47007 | -2/Research | Emitted hypermatrix ping 47012 | -2/Research | Assembled emerged from beneath the floor 47015 | -2/Research | Spotted Striker 47015 | -2/Research | Spotted Striker 47017 | -2/Research | Core integrity fell below 20% 47045 | -2/Research | Self-destructed Last Messages --------------- Dropped Adv. Heat Sink. Critical hit (Destroy). Biometal Heavy Treads destroyed. Slug penetrates Wall. Biometal Heavy Treads destroyed. Imp. Armor Integrity Analyzer destroyed. ANNOUNCEMENT: Unaware assault squad dispatched in southeast quadrant. ANNOUNCEMENT: Unaware assault squad dispatched in northwest quadrant. ANNOUNCEMENT: Unaware assault squad dispatched in southeast quadrant. Imp. Core Shielding destroyed. Emitted hypermatrix ping. Detected hypermatrix ping. Assembled emerge from beneath the floor. as-76591 destroyed. as-22981 destroyed. as-51841 knocked back. Knocked back. Adv. Salvage Targeting Computer destroyed. Catalytron disabled. System corrupted: Matter fused (-6). Map ----- +----------------------------------------------------+ | ?????????????????????????????????????????????????? | | ?????????????????????????????????????????????????? | | ?????????????????????????????????????????????????? | | ?????????????????????????????????????????????????? | | ?????????????????????????????????????????????????? | | ?????????????????????????????????????????????????? | | ?????????????????????????????????????????????????? | | ?????????????????????????????????????????????????? | | ?????????????????????????????????????????????????? | | ?????????????????????????????????????????????????? | | ?????????????????????????????????????????????????? | | ????????????????????????????????###########?#????? | | ????????????????????????????????# """T""" #???? | | ????????????????????????????????# """ """ #???? | | ????????????????????????????????# #???? | | ??????????????????????########### #???? | | ??????????????????????# # #???? | | ??????????????????????# " """" #???? | | ??????????????????????# # """" #???? | | ??????????????????????# """# """" #???? | | ??????????????????????# """# """" #???? | | ??????????????????????# """# #???? | | ??????????????????????# [ # #???? | | ??????????????????????# # #???? | | ??????????????????????####+############/######???? | | ??????????????????????# @ ##???? | | ??????????????????????+ "#???? | | ??????????????????????# ##???? | | ??????????????????????# #????? | | ??????????????????????# #############+####????? | | ??????????????????????# %##????????????????????? | | ??????????????????????# % ;#????????????????????? | | ??????????????????????# ##????????????????????? | | ??????????????????????# #?????????????????????? | | ??????????????????????# g#?????????????????????? | | ??????????????????????# #?????????????????????? | | ?????????????????#????# #?????????????????????? | | ?????????????????# ???# #?????????????????????? | | ???????????????### #### ########??????????????? | | ???????????????# % #####??????????? | | ???????????????# ???????? | | ???????????????# ???????? | | ???????????????# % """ ???????? | | ???????????????# ### "" ???????? | | ???????????????# ??# """ ????????? | | ???????????????# ???# ######?????????? | | ?????????????? ????# ##?????????????? | | ?????????????? ?????# ""#????????????? | | ??????????????????????# """ ""#????????????? | | ??????????????????????# """ G#????????????? | +----------------------------------------------------+ Best States ------------- Heat Dissipation 97 Coolant Potential 100 Energy Generation 43 Energy Capacity 850 Matter Stores 300 Matter Capacity 300 Sight Range 20 Robot Scan Range 19 Terrain Scan Density 1010 Jamming Range 16 Base Temperature (-) 200 Corruption Prevention 12 Armor Coverage 825 Resistance: KI 25 Resistance: TH 30 Resistance: EM 25 Core Shielding 30 Utility Shielding 66 Melee Speed Boost 20 Phase Shifting 10 Evasion (%) 56 Targeting Accuracy 8 Melee Accuracy 24 Target Analysis 10 Armor Integrity Analysis 50 Recoil Reduction 7 Matter Filtering 30 Kinecelleration 50 Salvage Targeting 3 Stasis Canceling 1 Offensive Hacking 12 Defensive Hacking 14 Item Schematics ----------------- Adv. Heavy Siege Treads | -3/Quarantine | Hacked Robot Schematics ------------------ None Fabricated ------------ Neutron Cannon | x2 | -7/Factory | Preloaded Combat Drone Bay | x1 | -5/Factory Alien Tech Used ----------------- Core Reset Matrix Phase Redirector Transdimensional Reconstructor Sigix Broadsword Phase Armor Achievements -------------- None Challenges ------------ None Game ------ Seed ProcessingCarbideLance Manual? 0 Play Time 05:15:32 Cumulative 336.6 hours Start 2021.09.13 @ 21:17:04 End 2021.09.19 @ 18:41:06 Sessions 8 Manual Loads 0 Difficulty Rogue Special Mode None Game No. 356 Rogue 356 Adventurer 0 Explorer 0 Win Type - Total 6 Types 6/0/0/0/0/0/0/0/0 Lore% 78 Gallery% 89 Achievement% 68 Wizard Run 0 Options --------- ASCII 0 Keyboard 0 Movement Mouse Keybinds 1 Fullscreen 2 Font 24/Smallcaps Map View 76x50 Tactical HUD 1 Map Filters NONE Filters NONE Steam 1 RUN: aaa64a76-866d-43a9-9200-78f84f26c62b